[Event "Prague Open 2024"]
[Site "Prague"]
[Date "2024.01.12"]
[Round "9.6"]
[White "Pyrig, Roman"]
[Black "Xie, Felix"]
[Result "1/2-1/2"]
[ECO "B40"]
[WhiteElo "2154"]
[BlackElo "2249"]
[Annotator "RC"]
[PlyCount "84"]
[EventDate "2024.01.02"]
[EventType "swiss"]
[EventCountry "CZE"]
[SourceTitle "playchess.com"]
[Source "ChessBase"]
[SourceQuality "1"]
[TimeControl "40/5400+30:1800+30"]

1. e4 {[%emt 0:00:37]} c5 {[%emt 0:00:06]} 2. Nf3 {[%emt 0:00:05]} e6 {[%emt 0:00:04]} 3. g3 {[%emt 0:00:06]} d5 {[%emt 0:00:07]} 4. exd5 {[%emt 0:00:07]} exd5 {[%emt 0:00:04]} 5. d4 {[%emt 0:00:03]} cxd4 {[%emt 0:00:04]} 6. Nxd4 {[%emt 0:01:55]} Nc6 {[%emt 0:00:03]} 7. Bg2 {[%emt 0:02:02]} Bc5 {[%emt 0:00:08]} 8. c3 {[%emt 0:01:03]} Nge7 {[%emt 0:04:41]} 9. O-O {[%emt 0:06:13]} O-O {[%emt 0:00:54]} 10. Be3 {[%emt 0:00:07]} Qb6 {[%emt 0:01:53]} 11. Nxc6 {[%emt 0:00:03]} bxc6 {[%emt 0:00:43]} 12. Bxc5 {[%emt 0:00:04]} Qxc5 {[%emt 0:00:07]} 13. Nd2 {[%emt 0:00:24]} Nf5 {[%emt 0:06:13]} 14. Rc1 {[%emt 0:06:01]} a5 {[%emt 0:07:35]} 15. c4 {[%emt 0:03:06]} Qd4 {[%emt 0:20:27]} 16. Rc3 {[%emt 0:03:05]} Ba6 {[%emt 0:02:48]} 17. Qc2 {[%emt 0:01:00]} Qe5 {[%emt 0:05:06]} 18. Nf3 {[%emt 0:00:05]} Qf6 {[%emt 0:00:07]} 19. Re1 {[%emt 0:11:27]} Rfe8 {[%emt 0:06:28]} 20. Rxe8+ {[%emt 0:07:21]} Rxe8 {[%emt 0:00:09]} 21. b3 {[%emt 0:00:01]} Nd4 {[%emt 0:15:09]} 22. Nxd4 {[%emt 0:00:05]} Re1+ {[%emt 0:00:20]} 23. Bf1 {[%emt 0:00:02]} Qxd4 {[%emt 0:00:06]} 24. Kg2 {[%emt 0:02:34]} c5 {[%emt 0:11:18]} 25. Be2 {[%emt 0:00:49]} dxc4 {[%emt 0:05:26]} 26. bxc4 {[%emt 0:00:02]} Bb7+ {[%emt 0:00:08]} 27. Bf3 {[%emt 0:00:02]} Bxf3+ {[%emt 0:01:31]} 28. Rxf3 {[%emt 0:00:02]} g6 {[%emt 0:00:26]} 29. Qb3 {[%emt 0:06:30]} Kg7 {[%emt 0:04:16]} 30. Rf4 {[%emt 0:00:01]} Qd1 {[%emt 0:01:32]} 31. Qxd1 {[%emt 0:04:47]} Rxd1 {[%emt 0:00:05]} 32. Rf3 {[%emt 0:00:02]} Rc1 {[%emt 0:00:30]} 33. Ra3 {[%emt 0:00:02]} Rxc4 {[%emt 0:00:05]} 34. Rxa5 {[%emt 0:00:03]} Rc3 {[%emt 0:00:32]} 35. Ra7 {[%emt 0:00:28]} c4 {[%emt 0:00:20]} 36. h4 {[%emt 0:00:10]} h5 {[%emt 0:00:20]} 37. a4 {[%emt 0:03:50]} Ra3 {[%emt 0:00:19]} 38. Kf1 {[%emt 0:00:02]} Ra2 {[%emt 0:00:09]} 39. a5 {[%emt 0:00:27]} c3 {[%emt 0:00:09]} 40. Rc7 {[%emt 0:00:01]} c2 {[%emt 0:00:12]} 41. Kg2 {[%emt 0:30:09]} c1=N {[%emt 0:30:08]} 42. Rxc1 {[%emt 0:00:10]} Rxa5 {[%emt 0:00:03]} 1/2-1/2

[Event "Prague Open 2024"]
[Site "Prague"]
[Date "2024.01.12"]
[Round "9.7"]
[White "Trapl, Dalibor"]
[Black "Stanojevic, Ilija"]
[Result "0-1"]
[ECO "B32"]
[WhiteElo "2108"]
[BlackElo "2206"]
[Annotator "RC"]
[PlyCount "66"]
[EventDate "2024.01.02"]
[EventType "swiss"]
[EventCountry "CZE"]
[SourceTitle "playchess.com"]
[Source "ChessBase"]
[SourceQuality "1"]
[TimeControl "40/5400+30:1800+30"]

1. e4 c5 2. Nf3 Nc6 3. d4 cxd4 4. Nxd4 e5 5. Nb5 d6 6. c4 Be7 7. N1c3 a6 8. Na3 Be6 9. Nc2 Bg5 10. Be2 h6 11. O-O Nf6 12. b3 Bxc1 13. Rxc1 O-O 14. Qd2 Qa5 15. Rfd1 Rfd8 16. h3 Rac8 17. Bf3 b5 18. Nd5 Qxd2 19. Rxd2 Bxd5 20. exd5 Ne7 21. Ne3 bxc4 22. Rxc4 Rxc4 23. Nxc4 e4 24. Be2 Nexd5 25. Na5 Nc3 26. Bxa6 d5 27. b4 d4 28. Nc6 Rd6 29. b5 d3 30. Ne7+ Kf8 31. Nc8 Rd8 32. b6 Nd7 33. a4 Nc5 0-1

[Event "Prague Open 2024"]
[Site "Prague"]
[Date "2024.01.12"]
[Round "9.8"]
[White "Kirtadze, Anastasia"]
[Black "Matras, Ondrej"]
[Result "1-0"]
[ECO "C17"]
[WhiteElo "1981"]
[BlackElo "2185"]
[Annotator "TA"]
[PlyCount "145"]
[EventDate "2024.01.02"]
[EventType "swiss"]
[EventCountry "CZE"]
[SourceTitle "playchess.com"]
[Source "ChessBase"]
[SourceQuality "1"]
[TimeControl "40/5400+30:1800+30"]

{[%evp 17,145,9,12,15,41,31,49,46,59,36,35,35,42,18,42,37,51,25,29,24,31,35,34,37,45,37,51,58,59,51,47,48,53,48,45,39,42,48,109,103,239,220,246,220,201,195,231,102,91,106,64,93,66,19,14,0,15,7,0,11,18,0,29,25,85,107,101,104,231,189,183,0,151,143,170,153,152,0,108,68,53,60,29982,29983,29975,29975,29973,524,521,514,537,515,499,500,732,702,920,986,914,913,900,835,722,703,980,1341,914,908,1902,1576,1895,1809,12793,12850,5691,2602,1140,1085,29963,29964,4610,6414,29975,29970,12779,5165,29984,29985,29985,29986]} 1. e4 e6 2. d4 d5 3. Nc3 Bb4 4. e5 c5 5. a3 Ba5 6. b4 cxd4 7. Qg4 Kf8 {Heutzutage beliebter als 7...Ne7. C18: Französische Verteidigung (Nimzowitsch-Variante).} 8. Nb5 Bb6 9. Nf3 (9. Nxd4 Qc7 $17) 9... Nc6 10. Bb2 (10. Nbxd4 Nxd4 11. Nxd4 Qc7 $19) 10... a6 11. Nbxd4 Nge7 12. Bd3 Nxd4 13. Nxd4 Bd7 $146 ({Predecessor:} 13... Nc6 14. h4 Nxe5 15. Qg3 Nxd3+ 16. cxd3 f6 17. O-O e5 18. Nf3 Qd7 19. Nxe5 fxe5 20. Qxe5 {1-0 Trifan,A (2249)-Perhinig,R (2241) GER-ch Net blitz qual5 2020 (13)}) 14. O-O Rc8 15. a4 h5 16. Qf4 Rh6 17. b5 Ng6 18. Qe3 axb5 19. axb5 Kg8 20. Kh1 h4 21. h3 Rh5 22. f4 Ne7 23. Qe2 g6 24. Qd2 Qe8 25. Rab1 Rh7 26. Rf3 Ra8 27. c4 Ra2 (27... dxc4 $14 28. Bxc4 Rc8) 28. Qb4 $16 Rg7 (28... dxc4 $16 29. Bxc4 Ra8) 29. c5 $18 Bd8 30. Ba3 Nf5 31. Nxf5 $1 gxf5 32. Rg1 (32. Bf1 $1 $18 {ist der präzise Gewinnweg.}) 32... Be7 33. Qb3 $1 Rxa3 34. Qxa3 Bxb5 35. Qb4 (35. Rb1 $14 Bc6 36. Qa5) 35... Bc6 $11 36. Qd4 Qf8 37. Rc1 Kh7 38. Bf1 Qa8 39. Rb3 Qa5 40. Qb4 Qa2 (40... Qxb4 $11 41. Rxb4 Bf8) 41. Rb2 $16 Qa8 42. Bb5 Bf8 (42... Bxb5 $16 43. Qxb5 Qa3) 43. Bxc6 $18 bxc6 {[#]} 44. Rb3 $2 (44. Qe1 $1 $18 {[%cal Re1h4]} Rg3 45. Ra1) 44... Qa6 $2 {[#]} (44... Qa2 $11 45. Rb2 Qa6) 45. Qd2 $1 $16 Qa4 46. Rb8 Rg8 47. Qb4 $2 ({Der einzige Zug:} 47. Rb7 $16 Kg6 48. Qf2) 47... Qa6 (47... Qa2 $11 48. Qb2 Qxb2 49. Rxb2 Rg3) 48. Qb7 Qe2 $1 49. Rg1 (49. Qxc6 $2 Qxg2#) (49. Qxf7+ $2 Rg7 $19) 49... Bxc5 $2 {[%mdl 8192]} (49... Qh5 $14) 50. Qxf7+ Rg7 51. Qxe6 Qh5 52. Rgb1 (52. Qxc6 $142 Bxg1 53. Qa8 (53. Kxg1 Qd1+ 54. Kh2 Qd3 $11) 53... Kg6 54. Rf8 (54. Kxg1 Qd1+ 55. Kh2 Qd3 $11) 54... Qh7 55. Qd8 (55. Kxg1 Kh5 $18) 55... Kh5 56. Rh8 (56. Kxg1 d4 57. Rh8 Qxh8 58. Qxh8+ Kg6 59. Qe8+ Kh7 60. e6 d3) 56... Qxh8 57. Qxh8+ Kg6 58. Kxg1) 52... Qg6 $18 53. Qxg6+ Kxg6 54. Rc8 Be3 55. Rxc6+ Kh5 56. Rf6 Bxf4 57. Rxf5+ Bg5 58. e6 Re7 59. Re1 Kg6 60. Rxd5 Kf6 61. Rf1+ Kg6 62. Re5 Ra7 63. Re4 Be7 64. g3 hxg3 65. Rg4+ Kh6 66. Rxg3 Ra6 67. Re3 Kg6 68. Rf7 Ra7 69. Kg2 Rc7 70. Kf3 Ra7 71. Ke4 Rc7 72. Rg3+ Kh6 73. Rgg7 1-0

[Event "Prague Open 2024"]
[Site "Prague"]
[Date "2024.01.12"]
[Round "9.9"]
[White "Neuman, Petr"]
[Black "Krivanek, Vladimir"]
[Result "1-0"]
[ECO "A80"]
[WhiteElo "2398"]
[BlackElo "2091"]
[Annotator "RC"]
[PlyCount "63"]
[EventDate "2024.01.02"]
[EventType "swiss"]
[EventCountry "CZE"]
[SourceTitle "playchess.com"]
[Source "ChessBase"]
[SourceQuality "1"]
[TimeControl "40/5400+30:1800+30"]

1. d4 {[%emt 0:00:03]} f5 {[%emt 0:14:50]} 2. Nc3 {[%emt 0:00:05]} Nf6 {[%emt 0:00:56]} 3. f3 {[%emt 0:00:06]} d5 {[%emt 0:00:59]} 4. Bg5 {[%emt 0:00:17]} Nbd7 {[%emt 0:06:48]} 5. Qd3 {[%emt 0:00:11]} c5 {[%emt 0:06:39]} 6. O-O-O {[%emt 0:07:15]} e6 {[%emt 0:09:18]} 7. e4 {[%emt 0:01:12]} c4 {[%emt 0:05:28]} 8. Qe3 {[%emt 0:02:44]} fxe4 {[%emt 0:03:28]} 9. fxe4 {[%emt 0:00:48]} Be7 {[%emt 0:03:10]} 10. Nf3 {[%emt 0:09:17]} Nb6 {[%emt 0:10:36]} 11. Bxf6 {[%emt 0:02:24]} Bxf6 {[%emt 0:04:08]} 12. exd5 {[%emt 0:00:21]} Nxd5 {[%emt 0:00:20]} 13. Nxd5 {[%emt 0:00:07]} Qxd5 {[%emt 0:00:09]} 14. Ne5 {[%emt 0:00:34]} b5 {[%emt 0:00:45]} 15. Be2 {[%emt 0:00:18]} Qd8 {[%emt 0:10:21]} 16. Qe4 {[%emt 0:02:42]} Qd5 {[%emt 0:04:33]} 17. Bh5+ {[%emt 0:02:23]} Ke7 {[%emt 0:01:46]} 18. Qe3 {[%emt 0:00:25]} Rb8 {[%emt 0:06:33]} 19. Bf3 {[%emt 0:01:42]} Qd6 {[%emt 0:00:18]} 20. Nc6+ {[%emt 0:02:12]} Kf7 {[%emt 0:00:14]} 21. Nxb8 {[%emt 0:02:14]} Qxb8 {[%emt 0:00:12]} 22. Kb1 {[%emt 0:00:40]} Bd7 {[%emt 0:00:34]} 23. g4 {[%emt 0:00:59]} Rc8 {[%emt 0:01:02]} 24. g5 {[%emt 0:00:19]} Be7 {[%emt 0:00:23]} 25. Bg4 {[%emt 0:02:30]} Qd6 {[%emt 0:00:49]} 26. Rde1 {[%emt 0:05:02]} Rc6 {[%emt 0:00:46]} 27. Rhf1+ {[%emt 0:00:35]} Ke8 {[%emt 0:00:29]} 28. d5 {[%emt 0:00:46]} exd5 {[%emt 0:00:49]} 29. Bxd7+ {[%emt 0:00:19]} Qxd7 {[%emt 0:00:41]} 30. Qd4 {[%emt 0:00:11]} Re6 {[%emt 0:01:19]} 31. Qxg7 {[%emt 0:00:57]} Rg6 {[%emt 0:00:42]} 32. Qh8+ {[%emt 0:00:22]} 1-0

[Event "Prague Open 2024"]
[Site "Prague"]
[Date "2024.01.12"]
[Round "9.10"]
[White "Morchiashvili, Bachana"]
[Black "Rybackova, Lucie"]
[Result "1-0"]
[ECO "D55"]
[WhiteElo "2295"]
[BlackElo "1970"]
[Annotator "RC"]
[PlyCount "107"]
[EventDate "2024.01.02"]
[EventType "swiss"]
[EventCountry "CZE"]
[SourceTitle "playchess.com"]
[Source "ChessBase"]
[SourceQuality "1"]
[TimeControl "40/5400+30:1800+30"]

1. d4 {[%emt 0:00:34]} Nf6 {[%emt 0:00:22]} 2. c4 {[%emt 0:00:46]} e6 {[%emt 0:00:16]} 3. Nf3 {[%emt 0:00:39]} d5 {[%emt 0:00:37]} 4. Nc3 {[%emt 0:00:09]} Be7 {[%emt 0:00:50]} 5. Bg5 {[%emt 0:00:07]} O-O {[%emt 0:02:21]} 6. e3 {[%emt 0:00:08]} c6 {[%emt 0:01:05]} 7. Bd3 {[%emt 0:00:23]} Nbd7 {[%emt 0:02:44]} 8. O-O {[%emt 0:00:21]} h6 {[%emt 0:01:07]} 9. Bh4 {[%emt 0:03:37]} b6 {[%emt 0:05:13]} 10. Qe2 {[%emt 0:04:09]} Bb7 {[%emt 0:05:18]} 11. Rfd1 {[%emt 0:04:08]} Ne4 {[%emt 0:10:59]} 12. Bg3 {[%emt 0:02:48]} f5 {[%emt 0:09:50]} 13. Rac1 {[%emt 0:01:53]} Ndf6 {[%emt 0:11:34]} 14. cxd5 {[%emt 0:02:28]} exd5 {[%emt 0:00:38]} 15. Ba6 {[%emt 0:04:21]} Bxa6 {[%emt 0:02:35]} 16. Qxa6 {[%emt 0:06:28]} Nxg3 {[%emt 0:00:35]} 17. hxg3 {[%emt 0:00:08]} Bd6 {[%emt 0:01:11]} 18. Ne2 {[%emt 0:00:54]} Qd7 {[%emt 0:02:22]} 19. Nf4 {[%emt 0:01:42]} Kh7 {[%emt 0:04:50]} 20. Qa4 {[%emt 0:01:36]} Rac8 {[%emt 0:04:23]} 21. Rc2 {[%emt 0:01:16]} Rc7 {[%emt 0:03:45]} 22. Rdc1 {[%emt 0:04:00]} Rfc8 {[%emt 0:01:15]} 23. b4 {[%emt 0:01:56]} g5 {[%emt 0:06:49]} 24. Nd3 {[%emt 0:00:19]} c5 {[%emt 0:01:03]} 25. Qxd7+ {[%emt 0:01:06]} Nxd7 {[%emt 0:00:08]} 26. bxc5 {[%emt 0:01:47]} bxc5 {[%emt 0:00:12]} 27. dxc5 {[%emt 0:01:00]} Nxc5 {[%emt 0:03:13]} 28. Nxc5 {[%emt 0:04:22]} Rxc5 {[%emt 0:00:34]} 29. Rxc5 {[%emt 0:00:11]} Rxc5 {[%emt 0:00:17]} 30. Rxc5 {[%emt 0:01:55]} Bxc5 {[%emt 0:00:09]} 31. Kf1 {[%emt 0:00:03]} Kg7 {[%emt 0:01:46]} 32. Ne5 {[%emt 0:02:26]} Bb6 {[%emt 0:00:51]} 33. Ke2 {[%emt 0:01:23]} Kf6 {[%emt 0:01:58]} 34. Nc6 {[%emt 0:06:51]} Ke6 {[%emt 0:05:26]} 35. Kd3 {[%emt 0:01:40]} Bc5 {[%emt 0:01:36]} 36. a4 {[%emt 0:04:57]} Kd6 {[%emt 0:01:24]} 37. Nd8 {[%emt 0:01:47]} Ke7 {[%emt 0:01:00]} 38. Nb7 {[%emt 0:03:13]} Bb4 {[%emt 0:01:20]} 39. Kd4 {[%emt 0:00:27]} Be1 {[%emt 0:02:03]} 40. Kxd5 {[%emt 0:01:31]} Bxf2 {[%emt 0:00:21]} 41. Nd6 {[%emt 0:30:26]} Kf6 {[%emt 0:07:55]} 42. e4 {[%emt 0:00:00]} Bxg3 {[%emt 0:05:29]} 43. Nxf5 {[%emt 0:00:00]} Be1 {[%emt 0:04:34]} 44. Nxh6 {[%emt 0:00:00]} Bc3 {[%emt 0:00:53]} 45. g4 {[%emt 0:00:00]} a5 {[%emt 0:02:22]} 46. Nf5 {[%emt 0:00:00]} Bb2 {[%emt 0:00:42]} 47. Nd6 {[%emt 0:00:00]} Bc3 {[%emt 0:00:30]} 48. e5+ {[%emt 0:00:00]} Kg6 {[%emt 0:02:55]} 49. e6 {[%emt 0:00:00]} Bf6 {[%emt 0:00:10]} 50. Ne4 {[%emt 0:00:00]} Be7 {[%emt 0:00:12]} 51. Kc6 {[%emt 0:00:00]} Kg7 {[%emt 0:00:36]} 52. Kd7 {[%emt 0:00:00]} Kf8 {[%emt 0:00:25]} 53. Nd6 {[%emt 0:00:00]} Bf6 {[%emt 0:00:16]} 54. Nc4 {[%emt 0:00:00]} 1-0

[Event "Prague Open 2024"]
[Site "Prague"]
[Date "2024.01.12"]
[Round "9.11"]
[White "Mgeladze, Kesaria"]
[Black "Vojta, Jakub"]
[Result "0-1"]
[ECO "B10"]
[WhiteElo "2038"]
[BlackElo "2261"]
[Annotator "RC"]
[PlyCount "168"]
[EventDate "2024.01.02"]
[EventType "swiss"]
[EventCountry "CZE"]
[SourceTitle "playchess.com"]
[Source "ChessBase"]
[SourceQuality "1"]
[TimeControl "40/5400+30:1800+30"]

1. e4 {[%emt 0:00:15]} c6 {[%emt 0:00:06]} 2. Nf3 {[%emt 0:00:40]} d5 {[%emt 0:00:08]} 3. Nc3 {[%emt 0:00:07]} dxe4 {[%emt 0:00:22]} 4. Nxe4 {[%emt 0:00:08]} Nf6 {[%emt 0:00:05]} 5. Qe2 {[%emt 0:00:11]} Nxe4 {[%emt 0:00:05]} 6. Qxe4 {[%emt 0:00:04]} Nd7 {[%emt 0:00:06]} 7. Bc4 {[%emt 0:00:16]} Nf6 {[%emt 0:00:04]} 8. Ne5 {[%emt 0:00:18]} e6 {[%emt 0:00:03]} 9. Qe2 {[%emt 0:00:07]} b5 {[%emt 0:03:13]} 10. Nxc6 {[%emt 0:02:48]} Qb6 {[%emt 0:00:22]} 11. Bd3 {[%emt 0:02:39]} Bb7 {[%emt 0:12:04]} 12. Ne5 {[%emt 0:00:33]} a6 {[%emt 0:00:10]} 13. O-O {[%emt 0:01:08]} Bd6 {[%emt 0:02:54]} 14. a4 {[%emt 0:17:23]} h5 {[%emt 0:15:16]} 15. axb5 {[%emt 0:05:45]} Ng4 {[%emt 0:00:16]} 16. Nf3 {[%emt 0:01:05]} axb5 {[%emt 0:09:19]} 17. Rxa8+ {[%emt 0:01:07]} Bxa8 {[%emt 0:00:02]} 18. Be4 {[%emt 0:02:37]} O-O {[%emt 0:06:48]} 19. d4 {[%emt 0:03:42]} b4 {[%emt 0:02:24]} 20. Bg5 {[%emt 0:07:59]} Bxe4 {[%emt 0:00:03]} 21. Qxe4 {[%emt 0:00:06]} Qb5 {[%emt 0:00:01]} 22. h4 {[%emt 0:09:57]} Qa6 {[%emt 0:06:14]} 23. Re1 {[%emt 0:12:41]} Rc8 {[%emt 0:04:15]} 24. Ne5 {[%emt 0:07:20]} Bxe5 {[%emt 0:01:43]} 25. dxe5 {[%emt 0:00:04]} Qb6 {[%emt 0:00:32]} 26. Be3 {[%emt 0:05:01]} Qb5 {[%emt 0:02:47]} 27. Bd2 {[%emt 0:05:26]} Qc5 {[%emt 0:00:45]} 28. Qf4 {[%emt 0:07:35]} Rd8 {[%emt 0:08:25]} 29. Bxb4 {[%emt 0:02:24]} Qxc2 {[%emt 0:00:19]} 30. Bc3 {[%emt 0:03:24]} Rd1 {[%emt 0:00:15]} 31. Qf3 {[%emt 0:00:34]} Rxe1+ {[%emt 0:02:38]} 32. Bxe1 {[%emt 0:00:03]} Qxb2 {[%emt 0:00:18]} 33. Qa8+ {[%emt 0:00:16]} Kh7 {[%emt 0:00:05]} 34. Qe4+ {[%emt 0:00:18]} g6 {[%emt 0:00:21]} 35. g3 {[%emt 0:01:42]} Qxe5 {[%emt 0:07:04]} 36. Qxe5 {[%emt 0:00:04]} Nxe5 {[%emt 0:00:03]} 37. Bc3 {[%emt 0:00:04]} Nc6 {[%emt 0:00:30]} 38. Kg2 {[%emt 0:00:16]} e5 {[%emt 0:01:33]} 39. Kf3 {[%emt 0:00:04]} f5 {[%emt 0:00:17]} 40. Ke3 {[%emt 0:00:18]} Kg8 {[%emt 0:00:21]} 41. Kd3 {[%emt 0:33:29]} Kf7 {[%emt 0:30:02]} 42. Ke3 {[%emt 0:00:00]} Ke6 {[%emt 0:00:00]} 43. Kd3 {[%emt 0:00:00]} Kd5 {[%emt 0:00:00]} 44. Bd2 {[%emt 0:00:00]} Nd4 {[%emt 0:00:00]} 45. Bc3 {[%emt 0:00:00]} Nb5 {[%emt 0:00:00]} 46. Bb2 {[%emt 0:00:00]} Nd6 {[%emt 0:00:00]} 47. Ba1 {[%emt 0:00:00]} Ne4 {[%emt 0:00:00]} 48. Ke3 {[%emt 0:00:00]} Nf6 {[%emt 0:00:00]} 49. Kd3 {[%emt 0:00:00]} Ng4 {[%emt 0:00:00]} 50. Ke2 {[%emt 0:00:00]} Nh2 {[%emt 0:00:00]} 51. Ke3 {[%emt 0:00:00]} Ng4+ {[%emt 0:00:00]} 52. Ke2 {[%emt 0:00:00]} e4 {[%emt 0:00:00]} 53. Bc3 {[%emt 0:00:00]} Kc4 {[%emt 0:00:00]} 54. Bg7 {[%emt 0:00:00]} Kd5 {[%emt 0:00:00]} 55. Bc3 {[%emt 0:00:00]} Ke6 {[%emt 0:00:00]} 56. Bd2 {[%emt 0:00:00]} Ne5 {[%emt 0:00:00]} 57. Be3 {[%emt 0:00:00]} Nd3 {[%emt 0:00:00]} 58. Bd2 {[%emt 0:00:00]} Ne5 {[%emt 0:00:00]} 59. Be3 {[%emt 0:00:00]} Nc4 {[%emt 0:00:00]} 60. Bh6 {[%emt 0:00:00]} Kd5 {[%emt 0:00:00]} 61. Bg5 {[%emt 0:00:00]} Ke5 {[%emt 0:00:00]} 62. Bh6 {[%emt 0:00:00]} Kd4 {[%emt 0:00:00]} 63. Bg7+ {[%emt 0:00:00]} Kc5 {[%emt 0:00:00]} 64. Bh6 {[%emt 0:00:00]} Kb4 {[%emt 0:00:00]} 65. Bg5 {[%emt 0:00:00]} Kc3 {[%emt 0:00:06]} 66. Bf6+ {[%emt 0:00:00]} Kc2 {[%emt 0:00:06]} 67. Bg5 {[%emt 0:00:00]} Ne5 {[%emt 0:00:27]} 68. Bf4 {[%emt 0:00:00]} Nf3 {[%emt 0:00:49]} 69. Be3 {[%emt 0:00:00]} Kc3 {[%emt 0:00:53]} 70. Bh6 {[%emt 0:00:00]} Nd4+ {[%emt 0:00:28]} 71. Ke3 {[%emt 0:00:00]} Ne6 {[%emt 0:00:15]} 72. Ke2 {[%emt 0:00:00]} Kd4 {[%emt 0:01:27]} 73. Bc1 {[%emt 0:00:00]} Kd5 {[%emt 0:00:40]} 74. Bh6 {[%emt 0:00:00]} Ke5 {[%emt 0:00:30]} 75. Ke3 {[%emt 0:00:00]} Kf6 {[%emt 0:00:38]} 76. Bf4 {[%emt 0:02:36]} Kf7 {[%emt 0:06:24]} 77. Bh6 {[%emt 0:00:33]} Ke7 {[%emt 0:00:36]} 78. Ke2 {[%emt 0:00:26]} Kf6 {[%emt 0:00:07]} 79. Ke3 {[%emt 0:00:29]} Ke5 {[%emt 0:00:13]} 80. Ke2 {[%emt 0:07:29]} f4 {[%emt 0:00:08]} 81. gxf4+ {[%emt 0:00:11]} Nxf4+ {[%emt 0:00:07]} 82. Kf1 {[%emt 0:00:11]} Kf5 {[%emt 0:00:19]} 83. Bg5 {[%emt 0:00:29]} Kg4 {[%emt 0:00:09]} 84. Kg1 {[%emt 0:00:51]} Nh3+ {[%emt 0:00:10]} 0-1

[Event "Prague Open 2024"]
[Site "Prague"]
[Date "2024.01.12"]
[Round "9.13"]
[White "Mohylnyi, Stepan"]
[Black "Pousada Garcia, Victor Daniel"]
[Result "1/2-1/2"]
[ECO "B28"]
[WhiteElo "2180"]
[BlackElo "1965"]
[Annotator "TA"]
[PlyCount "75"]
[EventDate "2024.01.02"]
[EventType "swiss"]
[EventCountry "CZE"]
[SourceTitle "playchess.com"]
[Source "ChessBase"]
[SourceQuality "1"]
[TimeControl "40/5400+30:1800+30"]

{[%evp 13,75,46,38,27,36,37,33,11,25,22,75,75,74,48,51,51,63,59,70,63,64,58,50,47,85,-8,0,0,0,0,0,-87,-76,-68,-72,-60,-77,-82,-81,-135,-148,-136,-147,-158,0,-110,-130,-133,-37,-136,146,-205,-214,-170,-195,-250,-239,-258,0,0,0,-260,0,0]} 1. e4 {[%emt 0:00:10]} c5 {[%emt 0:00:12]} 2. Nf3 {[%emt 0:00:06]} a6 {[%emt 0:00:14]} 3. c4 {[%emt 0:00:32]} e6 {[%emt 0:00:56]} 4. Nc3 {[%emt 0:00:10]} Qc7 {[%emt 0:00:51]} 5. d4 {[%emt 0:01:10]} cxd4 {[%emt 0:00:08]} 6. Nxd4 {[%emt 0:01:11]} Nf6 {[%emt 0:00:10]} 7. Be2 {[%emt 0:02:23]} Bb4 {[%emt 0:02:21]} 8. Qc2 {[%emt 0:01:22]} Nc6 {[%emt 0:01:44]} 9. Nxc6 {[%emt 0:03:48]} dxc6 {[%emt 0:01:19]} 10. a3 {[%emt 0:03:47] Weiß steht etwas besser.} Bd6 {[%emt 0:08:06]} 11. Be3 {[%emt 0:06:51]} e5 {[%emt 0:09:24]} (11... b5 $11 {bleibt in der Remisbreite.}) 12. c5 $16 {[%emt 0:02:27]} Be7 {[%emt 0:00:22]} 13. h3 {[%emt 0:00:39] Lässt Ng4 nicht zu. Weiß steht aktiver.} Be6 {[%emt 0:04:25]} 14. b4 {[%emt 0:08:08]} Rd8 {[%emt 0:05:25]} 15. O-O {[%emt 0:04:06]} O-O {[%emt 0:04:43]} 16. f4 {[%emt 0:00:51]} exf4 {[%emt 0:00:31]} 17. Bxf4 {[%emt 0:00:02]} Qc8 {[%emt 0:00:45]} 18. Na4 {[%emt 0:07:14]} Rd4 {[%emt 0:13:51]} 19. Bd3 {[%emt 0:13:50] [#]} (19. Nb6 $16 Qd8 20. Rad1) 19... Bxh3 {[%emt 0:06:53]} 20. gxh3 {[%emt 0:27:43]} Qxh3 {[%emt 0:00:18]} 21. Nb2 {[%emt 0:00:07]} Rfd8 {[%emt 0:12:29][%cal Rd4d3]} 22. Qg2 {[%emt 0:03:17]} (22. Rad1 $11 {hält das Gleichgewicht.}) 22... Rxd3 $17 {[%emt 0:01:35]} 23. Nxd3 {[%emt 0:00:14]} Qxd3 {[%emt 0:01:51]} 24. Rfd1 {[%emt 0:02:48]} Qxd1+ {[%emt 0:05:41]} (24... Qxe4 25. Rxd8+ Bxd8 26. Qxe4 Nxe4 27. Rd1 $18) 25. Rxd1 {[%emt 0:00:01]} Rxd1+ {[%emt 0:00:08]} 26. Kh2 {[%emt 0:00:02] [#]} (26. Kf2 $142) 26... h5 $1 {[%emt 0:01:05] Droht ...Ng4+ und aus.} 27. Qe2 {[%emt 0:05:34]} Rd4 {[%emt 0:07:58]} 28. e5 {[%emt 0:00:33] [#]} Re4 $2 {[%emt 0:02:51]} (28... Rxf4 29. exf6 Bxf6 30. Qe8+ Kh7 31. Qxf7 $16) (28... Ng4+ $1 $17 29. Kg3 g6) 29. Qf3 {[%emt 0:03:27]} (29. Qd3 $1 $11 Rxf4 30. exf6 Bxf6 31. Qd7) 29... Ng4+ {[%emt 0:00:24]} 30. Kg2 {[%emt 0:00:10]} Rc4 {[%emt 0:01:12]} (30... Nxe5 $2 {zu gefräßig.} 31. Qxe4 Ng6 32. Bd6 $18) (30... Rd4 $17 31. Bc1 g6 (31... Nxe5 32. Qxh5 Bf6 33. Qh3 $15)) 31. Bg3 {[%emt 0:01:48]} ({Vorzuziehen ist} 31. Bd2 $1 $15) 31... h4 $2 {[%emt 0:02:50][%mdl 8192]} (31... Rd4 $17 {...Bg5 ist eine echte Drohung.} 32. Qe2 g6) 32. Bf2 $2 {[%emt 0:01:10][%mdl 8192]} (32. Bf4 $16 {ist erzwungen, um die Oberhand zu behalten.} Nh6 33. e6 (33. Bxh6 Rc2+ 34. Kh1 gxh6 $16) 33... h3+ 34. Kg1 (34. Kxh3 g5 $16) 34... fxe6 35. Bxh6 gxh6 36. Qxh3) 32... Nxe5 $19 {[%emt 0:00:35]} 33. Qf5 {[%emt 0:00:09]} Bf6 {[%emt 0:01:56]} 34. Qc8+ {[%emt 0:00:26]} (34. Be3 {ist eine bessere Verteidigung.}) 34... Kh7 {[%emt 0:00:04] ...g5 wäre nun fies.} 35. Qf5+ {[%emt 0:00:40]} Kg8 {[%emt 0:01:14]} 36. Qc8+ {[%emt 0:00:13]} Kh7 {[%emt 0:00:01]} 37. Qf5+ {[%emt 0:00:54]} Kg8 $2 {[%emt 0:00:36]} ({Besser ist} 37... Ng6 $19 {Und ...Rc3 würde nun gewinnen.} 38. Bg1 Rc3) 38. Qc8+ {[%emt 0:00:51] Gewichteter Fehlerwert: Weiß=0.40/Schwarz=0.57.  Verlustzug:     	Weiß=1     	---        Gewinn verpasst:   	---       	Schwarz=1     Fehler:       	Weiß=6     	Schwarz=4     Ungenau:       	Weiß=1     	Schwarz=1     OK:         	Weiß=12    	Schwarz=8     Bester:       	Weiß=2     	Schwarz=5     Stark:        	---       	Schwarz=1} 1/2-1/2